Workbook

Sheet Backpacking
A1: Trip length | B1: Days = | C1: 11 | H1: calories per day = | J1: 1500 | K1: =C1*J1 -> 16500 | L1: sum cj | M1: Enter red | O1: figures in
B2: Days = | C2: 0 | H2: calories per day = | J2: 2500 | K2: =C2*J2 -> 0 | M2: items
B3: Days = | C3: 0 | H3: calories per day = | J3: 3000 | K3: =C3*J3 -> 0
B4: Days = | C4: 0 | H4: calories per day = | J4: 4000 | K4: 0
B5: Days = | C5: 0 | H5: calories per day = | J5: 5000 | K5: 0
B7: Total = | C7: =SUM(C1:C6) -> 11 | K7: =SUM(K1:K5) -> 16500
B11: Weeks = | C11: =C7/7 -> 1.571428571 | H11: calorie factor = | J11: =K7/(C7*1500) -> 1 | O11: this column
B12: Months = | C12: =C7*12/365 -> 0.3616438356 | O12: from the web
B14: #people= | C14: 1 | D14: one to four
H15: #food stuff sacks = | J15: 1 | K15: sm + lg | O15: or label
A16: Travel-camping material is in a blue font
A19: Food | B19: Meal | D19: 1=take, 0=no | E19: unit | F19: oz/unit | G19: units/day | H19: units /week | I19: units/month | J19: weeks | K19: /trip | L19: units (total) | M19: oz (total) | N19: lb | O19: cal/oz | P19: cal/week | Q19: cal/day | R19: cal/lb | U19: For a long trip, hike days at 2,500+ cal, others at 1,500 - 2000
A20: =K7/C7 -> 1500 | B20: Breakfast | U20: More than one person, assuming similar personal gear…
A21: target | C21: Granola (~116 cal/oz) | D21: 1 | E21: cup | F21: 4 | H21: =5*J11 -> 5 | J21: =C11 -> 1.571428571 | L21: =M21/F21 -> 7.857142857 | M21: =D21*F21*H21*J21 -> 31.42857143 | N21: =M21/16 -> 1.964285714 | O21: 116 | P21: =H21*F21*O21*D21 -> 2320 | Q21: =P21/7 -> 331.4285714 | R21: =O21*16 -> 1856 | V21: … and shared gear, e.g., one stove / four people
A22: mean cal/day | C22: Milk powder | D22: 0 | E22: cup | F22: 6.5 | H22: =J11 -> 1 | J22: =C11 -> 1.571428571 | L22: =M22/F22 -> 0 | M22: =D22*F22*H22*J22 -> 0 | N22: =M22/16 -> 0 | O22: 100 | P22: =H22*F22*O22*D22 -> 0 | Q22: =P22/7 -> 0 | R22: =O22*16 -> 1600
C23: Milkman | D23: 1 | E23: packet | F23: 3.44 | H23: =ROUNDUP((C1+C2)/4,0) -> 3 | L23: =H23*C11*D23 -> 4.714285714 | M23: =D23*H23*3.44 -> 10.32 | N23: 0.645 | O23: 100 | P23: =O23*M23 -> 1032 | Q23: =P23/7 -> 147.4285714 | R23: 1600
A24: =SUM(C1:C5) -> 11 | C24: Coffee | D24: 1 | E24: oz | F24: 1 | G24: 1.5 | H24: =G24*7 -> 10.5 | J24: =C11 -> 1.571428571 | L24: 16.5 | M24: =D24*F24*H24*J24 -> 16.5 | N24: 1.03125 | O24: 0 | P24: =H24*F24*O24*D24 -> 0 | Q24: 0 | R24: 0
A25: days | G25: 5 heaping tbsp
C26: Coffee, freeze dried, consider
C27: Sugar (~110 cal/oz) | D27: 1 | E27: oz | F27: 1 | H27: 10 | J27: =C11 -> 1.571428571 | L27: =M27/F27 -> 15.71428571 | M27: =D27*F27*H27*J27 -> 15.71428571 | N27: 0.9821428571 | O27: 110 | P27: =H27*F27*O27*D27 -> 1100 | Q27: 157.1428571 | R27: 1760
C28: Vitamins, meds, ibuprofen | D28: 1 | E28: oz | F28: 1 | H28: 2.5 | J28: =C11 -> 1.571428571 | L28: =M28/F28 -> 3.928571429 | M28: =D28*F28*H28*J28 -> 3.928571429 | N28: =M28/16 -> 0.2455357143 | O28: 0 | P28: =H28*F28*O28*D28 -> 0 | Q28: 0 | R28: 0 | T28: qd-4 ibu 1 allegra 100mg losartan 25 mg hctz 1(b,C,D,E,Glucosamine, Multi)
A29: may sustitute | C29: Teas, drinks | D29: 1 | E29: oz | F29: 1 | H29: 1.5 | J29: =C11 -> 1.571428571 | L29: 2.357142857 | M29: =D29*F29*H29*J29 -> 2.357142857 | N29: =M29/16 -> 0.1473214286 | O29: 0 | P29: =H29*F29*O29*D29 -> 0 | Q29: 0 | R29: 0
A30: amounts | C30: Condensed milk | D30: 0 | E30: can | F30: 14 | J30: =C11 -> 1.571428571 | K30: 1 | M30: =D30*F30*H30*J30 -> 0 | N30: =M30/16 -> 0 | O30: 100 | P30: =D30*O30*F30/J30 -> 0 | Q30: 0 | R30: 1600
B31: Trail
C32: Sesame sticks | D32: 1 | E32: fist | F32: 1.333333333 | H32: =4*J11 -> 4 | J32: =C11 -> 1.571428571 | L32: =M32/F32 -> 6.285714286 | M32: =D32*F32*H32*J32 -> 8.380952381 | N32: =M32/16 -> 0.5238095238 | O32: 155 | P32: =H32*F32*O32*D32 -> 826.6666667 | Q32: 118.0952381 | R32: 2480
C33: Nuts (Peanuts, Cashews ~160 cal/oz) | D33: 1 | E33: fist | F33: 1.666666667 | H33: =4*J11 -> 4 | J33: =C11 -> 1.571428571 | L33: =M33/F33 -> 6.285714286 | M33: =D33*F33*H33*J33 -> 10.47619048 | N33: 0.6547619048 | O33: 160 | P33: =H33*F33*O33*D33 -> 1066.666667 | Q33: 152.3809524 | R33: 2560
C34: Dried fruit | D34: 1 | E34: fist | F34: 2.166666667 | H34: =4*J11 -> 4 | J34: =C11 -> 1.571428571 | L34: 6.285714286 | M34: =D34*F34*H34*J34 -> 13.61904762 | N34: 0.8511904762 | O34: 100 | P34: =H34*F34*O34*D34 -> 866.6666667 | Q34: 123.8095238 | R34: 1600
B35: Dinner
C36: Rice, instant, add | D36: 1 | E36: fist | F36: 1.333333333 | H36: =ROUNDDOWN((7-H39+2)*J11,0) -> 7 | J36: =C11 -> 1.571428571 | L36: =M36/F36 -> 11 | M36: =D36*F36*H36*J36 -> 14.66666667 | N36: =M36/16 -> 0.9166666667 | O36: 115 | P36: =H36*F36*O36*D36 -> 1073.333333 | Q36: 153.3333333 | R36: 1840
C37: Rice, regular, to work on
C38: Beans, add spices | D38: 1 | E38: fist | F38: 1.666666667 | H38: =ROUNDDOWN((6-H39+2)*J11,0) -> 6 | J38: =C11 -> 1.571428571 | L38: =M38/F38 -> 9.428571429 | M38: 15.71428571 | N38: =M38/16 -> 0.9821428571 | O38: 102 | P38: =H38*F38*O38*D38 -> 1020 | Q38: 145.7142857 | R38: 1632
C39: Ramen | D39: 1 | E39: packet | F39: 2.5 | H39: =ROUNDUP(2*J11,0) -> 2 | J39: =C11 -> 1.571428571 | L39: =M39/F39 -> 3.142857143 | M39: 7.857142857 | N39: 0.4910714286 | O39: 102 | P39: 510 | Q39: 72.85714286 | R39: 1632
C40: Broths | D40: 1 | E40: packet | F40: 0.5 | H40: =ROUNDUP(2*J11,0) -> 2 | J40: =C11 -> 1.571428571 | L40: =M40/F40 -> 3.142857143 | M40: 1.571428571 | N40: 0.09821428571 | O40: 70 | P40: 70 | Q40: 10 | R40: 1120
C41: Jerky | D41: 1 | E41: packet | F41: 3 | H41: =ROUNDUP(J11,0) -> 1 | J41: =C11 -> 1.571428571 | L41: 1.571428571 | M41: 4.714285714 | N41: 0.2946428571 | O41: 116 | P41: 348 | Q41: 49.71428571 | R41: 1856
C42: Fruit bars | D42: 1 | E42: bar | F42: 1.2 | H42: =ROUNDUP(5*J11,0) -> 5 | J42: =C11 -> 1.571428571 | L42: 7.857142857 | M42: 9.428571429 | N42: 0.5892857143 | O42: 100 | P42: 600 | Q42: 85.71428571 | R42: 1600
C43: Turmeric | D43: 0 | E43: oz | F43: 1 | H43: 1 | J43: =C11 -> 1.571428571 | L43: 0 | M43: 0 | N43: 0 | O43: 0 | P43: 0 | Q43: 0 | R43: 0
C44: Jalapenos | D44: 1 | E44: jalapeno | F44: 0.5 | H44: 2 | J44: =C11 -> 1.571428571 | L44: 3.142857143 | M44: 1.571428571 | N44: 0.09821428571 | O44: 0 | P44: 0 | Q44: 0 | R44: 0
C45: Garlic, packets | D45: 1 | E45: packet | F45: 1.5 | H45: 1 | J45: =C11 -> 1.571428571 | L45: =ROUNDUP(M45/F45,0) -> 2 | M45: 2.357142857 | N45: 0.1473214286 | O45: 0 | P45: 0 | Q45: 0 | R45: 0
C46: Onion, thumb dia | D46: 1 | E46: onion | F46: 6 | H46: 1 | J46: =C11 -> 1.571428571 | L46: 1.571428571 | M46: 9.428571429 | N46: 0.5892857143 | O46: 0 | P46: 0 | Q46: 0 | R46: 0
C47: Spices (review) | D47: 1 | E47: oz | F47: 1 | H47: 3 | J47: =C11 -> 1.571428571 | L47: 4.714285714 | M47: 4.714285714 | N47: 0.2946428571 | O47: 0 | P47: 0 | Q47: 0 | R47: 0
C48: Salt | D48: 1 | E48: oz | F48: 1 | H48: 2 | J48: =C11 -> 1.571428571 | L48: 3.142857143 | M48: 3.142857143 | N48: 0.1964285714 | O48: 0 | P48: 0 | Q48: 0 | R48: 0
C49: Veg oil (~240 cal/oz) | D49: 1 | E49: oz | F49: 1 | H49: =2*J11 -> 2 | J49: =C11 -> 1.571428571 | L49: 3.142857143 | M49: 3.142857143 | N49: 0.1964285714 | O49: 240 | P49: =H49*F49*O49*D50 -> 0 | Q49: 0 | R49: 3840
B50: Stuff sacks | D50: 0 | E50: sack | F50: 4.5 | K50: =J15 -> 1 | L50: =K50 -> 1 | M50: =D50*F50*L50 -> 0 | N50: 0
B51: Bearvault | D51: 1 | E51: vault | F51: 41 | K51: 1 | L51: =K51 -> 1 | M51: =D51*F51*L51 -> 41 | N51: =M51/16 -> 2.5625
A52: Food, total (one person) | M52: =SUM(M21:M51) -> 232.0342857 | N52: =M52/16 -> 14.50214286 | P52: =SUM(P21:P49) -> 10833.33333 | Q52: =P52/7 -> 1547.619048 | R52: =P52/N52 -> 747.0160403
A54: Cooking...
C55: Utensils | D55: 1 | E55: item(s) | F55: 8.5 | K55: 1 | M55: =D55*F55 -> 8.5 | N55: =M55/16 -> 0.53125
C56: Stove-MSR Dragonfly | D56: 1 | E56: item(s) | F56: 14.5 | K56: 1 | M56: =D56*F56*K56/C14 -> 14.5 | N56: =M56/16 -> 0.90625
C57: Heat shield | D57: 1 | E57: item(s) | F57: 2.5 | K57: 1 | M57: =D57*F57*K57/C14 -> 2.5 | N57: 0.15625
C58: Pot, titanium | D58: 1 | E58: item(s) | F58: 8 | K58: 1 | M58: =D58*F58*K58/C14 -> 8 | N58: 0.5
C59: Pot, stainless, 0.50 gal | D59: 0 | E59: item(s) | F59: 20 | K59: 1 | M59: =D59*F59*K59/C14 -> 0 | N59: 0
C60: Pot, stainless, 0.25 gal | D60: 0 | E60: item(s) | F60: 13 | K60: 1 | M60: =D60*F60*K60/C14 -> 0 | N60: 0
C61: Fuel bottle, 1 l tr/ 33oz | D61: =ROUNDUP(C11,0) -> 2 | E61: item(s) | F61: 7.6 | K61: =ROUNDUP(H65*C14/32,0) -> 2 | M61: =D61*F61*K61/C14 -> 30.4 | N61: =M61/16 -> 1.9
C62: Fuel bottle, 591 ml / 20oz | D62: =0 -> 0 | E62: item(s) | F62: 6 | K62: 1 | M62: 0 | N62: =M62/16 -> 0
C63: Fuel bottle, 325 ml / 11oz | D63: 0 | E63: item(s) | F63: 4 | K63: 1 | M63: 0 | N63: =M63/16 -> 0
C65: Fuel | E65: fl oz | F65: 0.7 | H65: =(32*(1+(C14-1)*0.5)*C11)/C14 -> 50.28571429 | M65: =F65*H65 -> 35.2 | N65: =M65/16 -> 2.2
C67: MSR Pocket Rocket Deluxe (get?) | D67: 0 | E67: item(s) | F67: 2.9 | G67: currently, a one person item | K67: 1 | M67: =D67*F67 -> 0 | N67: =M67/16 -> 0
C68: MSR 16 oz cannister-ask at Ad-Edge | D68: 0 | E68: item(s) | F68: 16 | G68: currently, a one person item | K68: 1 | M68: =D68*F68 -> 0 | N68: =M68/16 -> 0
A69: Cooking… total | M69: =SUM(M55:M65) -> 99.1 | N69: 6.19375
A71: Hiking, travel | I71: include in pack weight, 0 = no
C72: Backpack, Osprey, Ejos | D72: 1 | E72: item(s) | F72: 43 | I72: 1 | M72: =D72*F72*I72 -> 43 | N72: =M72/16 -> 2.6875
C73: Pack Cover, Osprey, Large | D73: 0 | E73: item(s) | F73: 3 | I73: 1 | M73: 0 | N73: =M73/16 -> 0
C74: Backpack, Osprey, Argon 85M | D74: 0 | E74: item(s) | F74: 104 | I74: 1 | M74: 0 | N74: =M74/16 -> 0
C75: Olive Jansport daypack | D75: 0 | E75: item(s) | F75: 17 | I75: 1 | M75: 0 | N75: =M75/16 -> 0
C76: Binoculars | D76: 0 | E76: item(s) | F76: 8.5 | I76: 1 | M76: 0 | N76: =M76/16 -> 0
C77: Rifle, .30-06 | D77: 0 | E77: item(s) | F77: 144 | I77: 1 | M77: 0 | N77: =M77/16 -> 0
C78: Shoes, ankle high | D78: 0 | E78: item(s) | F78: 48 | I78: 0 | M78: 0 | N78: 0
C79: Shoes, running | D79: 1 | E79: item(s) | F79: 30 | I79: 0 | M79: 0 | N79: 0
C80: Sneakers | D80: 0 | E80: item(s) | F80: 29 | I80: 1 | M80: 0 | N80: 0
C81: Sandals | D81: 1 | E81: item(s) | F81: 19 | I81: 1 | M81: 19 | N81: 1.1875
C82: Shoes, dress | D82: 0 | E82: item(s) | F82: 26 | I82: 1 | M82: 0 | N82: =M82/16 -> 0
C83: MSR Snowshoes | D83: 0 | E83: item(s) | F83: 59 | I83: 1 | M83: 0 | N83: 0
C84: … MSR Snowshoe extebsuibs | D84: 0 | E84: item(s) | F84: 17 | I84: 1 | M84: 0 | N84: 0
C85: Cross-country skis and poles | D85: 0 | E85: item(s) | F85: 118 | I85: 1 | M85: 0 | N85: 0
C86: Crampons | D86: 0 | E86: item(s) | F86: 40.75 | I86: 1 | M86: 0 | N86: 0
C87: Trekking poles, Leki | D87: 1 | E87: item(s) | F87: 20 | I87: 1 | M87: 20 | N87: =M87/16 -> 1.25
C88: Insect netting | D88: 1 | E88: item(s) | F88: 1.5 | I88: 1 | M88: 1.5 | N88: 0.09375
C89: Pouch-misc items | D89: 1 | E89: item(s) | F89: 16.5 | I89: 1 | M89: 16.5 | N89: 1.03125
C90: Albuterol | D90: 0 | E90: item(s) | F90: 1.5 | I90: 1 | M90: 0 | N90: 0
C91: Maps, paper | D91: 1 | E91: item(s) | F91: 9.5 | I91: 1 | M91: 9.5 | N91: 0.59375
C92: Simple manual | D92: 2 | E92: item(s) | F92: 1 | I92: 1 | M92: 2 | N92: 0.125
C93: Camera | D93: 1 | E93: item(s) | F93: 6.5 | I93: 1 | M93: 6.5 | N93: 0.40625
C94: Phone | D94: 1 | E94: item(s) | F94: 3.5 | I94: 1 | M94: 3.5 | N94: 0.21875
C95: Cards, check, cash, key | D95: 1 | E95: item(s) | F95: 2 | I95: 1 | M95: 2 | N95: 0.125
C96: Batteries | D96: 1 | E96: item(s) | F96: 4.5 | I96: 1 | M96: 4.5 | N96: =M96/16 -> 0.28125
C97: Watch | D97: 1 | E97: item(s) | F97: 2 | I97: 1 | M97: 2 | N97: 0.125
C98: Plastic bags | D98: 1 | E98: item(s) | F98: 0.5 | I98: 1 | M98: 0.5 | N98: 0.03125
C100: H2O filter straw | D100: 1 | E100: item(s) | F100: 2 | I100: 1 | M100: =D100*F100*I100 -> 2 | N100: 0.125
C101: 64 oz Platypus H2O bladder | D101: 1 | E101: item(s) | F101: 6 | I101: 1 | M101: =D101*F101*I101 -> 6 | N101: 0.375
C102: 32 oz Nalgene H2O bottle | D102: 1 | E102: item(s) | F102: 7 | I102: 1 | M102: =D102*F102*I102 -> 7 | N102: 0.4375
C103: H2O for platypus | D103: 0 | E103: oz | F103: 1 | G103: 64 | I103: 1 | M103: =D103*F103*G103*I103 -> 0 | N103: 0
C104: H2O for nalgene | D104: 1 | E104: oz | F104: 1 | G104: 32 | I104: 1 | M104: =D104*F104*G104*I104 -> 32 | N104: 2
A105: Hiking, total | M105: =SUM(M72:M104) -> 177.5 | N105: 11.09375
A107: Camping
C108: Tent (Nemo, Elite 1p) + footprint | D108: 1 | E108: items(s) | F108: 39 | M108: =D108*F108 -> 39 | N108: =M108/16 -> 2.4375 | O108: take only if one person
C109: Tent (Sierra Designs, Flashlight) | D109: 0 | E109: items(s) | F109: 78 | M109: =D109*F109/2 -> 0 | N109: 0 | O109: take if two people
C110: Bivvy | D110: 0 | E110: items(s) | F110: 17 | M110: =D110*F110 -> 0 | N110: 0 | O110: take only if one person
C111: Bivvy - OR | D111: 0 | E111: items(s) | F111: 21 | M111: =D111*F111 -> 0 | N111: 0 | O111: take only if one person
C112: Tarp 9'x9' | D112: 0 | E112: items(s) | F112: 33 | M112: =D112*F112 -> 0 | N112: 0
C113: Tarp 8'x6' | D113: 0 | E113: items(s) | F113: 25 | M113: =D113*F113 -> 0 | N113: 0
C114: Ridge 10 stakes, lines 10 - 12', guys 4 -6'
C115: Ground sheet (separate) | D115: 0 | E115: items(s) | F115: 13 | M115: =D115*F115 -> 0 | N115: 0
C116: Footprint - MSR
C117: Sleeping bag, Western Mntnring | D117: 1 | E117: items(s) | F117: 18 | M117: =D117*F117 -> 18 | N117: =M117/16 -> 1.125
C118: Sleeping bag, Marmot | D118: 0 | E118: items(s) | F118: 34 | M118: 0 | N118: =M118/16 -> 0
C119: Air mattress | D119: 1 | E119: items(s) | F119: 14.5 | M119: 14.5 | N119: 0.90625
C120: Rope, straps | D120: 1 | E120: items(s) | F120: 3.5 | M120: 3.5 | N120: 0.21875
C121: Med sack | D121: 1 | E121: items(s) | F121: 16 | M121: 16 | N121: 1
C122: Toilet | D122: 1 | E122: items(s) | F122: 3.5 | M122: 3.5 | N122: 0.21875
A123: Camping, total | M123: =SUM(M108:M122) -> 94.5 | N123: 5.90625
A125: Clothes | B125: * summer, general | D125: Count | G125: 1=take, 0=no | I125: include in pk wt, 0=no
C126: Lite cap shirt* | D126: 1 | E126: item(s) | F126: 4.25 | G126: 1 | I126: 1 | M126: =D126*F126*G126*I126 -> 4.25 | N126: =M126/16 -> 0.265625
C127: Lite cap shirt, tee / long sleeve* | D127: 1 | E127: item(s) | F127: 4.25 | G127: 1 | I127: 1 | M127: 4.25 | N127: =M127/16 -> 0.265625
C128: Cap shirt, grey, hooded* | D128: 1 | E128: item(s) | F128: 5.5 | G128: 1 | I128: 1 | M128: 5.5 | N128: 0.34375
C129: Steel grey warm shirt* | D129: 1 | E129: item(s) | F129: 10 | G129: 1 | I129: 0 | M129: 0 | N129: 0
C130: Mid wt cap z-neck | D130: 1 | E130: item(s) | F130: 9 | G130: 0 | I130: 1 | M130: 0 | N130: 0
C131: Collared shirt | D131: 1 | E131: item(s) | F131: 8 | G131: 0 | I131: 1 | M131: 0 | N131: 0
C132: Blk wind wall jacket, N Face | D132: 1 | E132: item(s) | F132: 26.5 | G132: 0 | I132: 1 | M132: 0 | N132: 0
C133: Blk lined jacket, N Face | D133: 1 | E133: item(s) | F133: 18 | G133: 0 | I133: 1 | M133: 0 | N133: 0
C134: Red wind wall jacket, Marmot | D134: 1 | E134: item(s) | F134: 23.5 | G134: 0 | I134: 1 | M134: 0 | N134: 0
C135: Rain jacket, Marmot* | D135: 1 | E135: item(s) | F135: 12.25 | G135: 1 | I135: 1 | M135: 12.25 | N135: 0.765625
C136: Rain jacket, Columbia | D136: 0 | E136: item(s) | F136: 18 | G136: 0 | I136: 1 | M136: 0 | N136: 0
C137: Down jacket, blue | D137: 0 | E137: item(s) | F137: 24 | G137: 0 | I137: 1 | M137: 0 | N137: =M137/16 -> 0
C138: Dress jacket | D138: 0 | E138: item(s) | F138: 26.5 | G138: 0 | I138: 1 | M138: 0 | N138: 0
C139: Gloves, lite | D139: 1 | E139: item(s) | F139: 1 | G139: 1 | I139: 1 | M139: 1 | N139: 0.0625
C140: Sun-visor* | D140: 1 | E140: item(s) | F140: 2 | G140: 1 | I140: 1 | M140: 2 | N140: =M140/16 -> 0.125
C141: Hat | D141: 1 | E141: item(s) | F141: 5 | G141: 0 | I141: 1 | M141: 0 | N141: 0
C142: Lite cap long u'wear* | D142: 1 | E142: item(s) | F142: 4 | G142: 1 | I142: 0 | M142: 0 | N142: 0
C143: Lite cap long u'wear, spare* | D143: 1 | E143: item(s) | F143: 4 | G143: 1 | I143: 1 | M143: =D143*F143*G143*I143 -> 4 | N143: 0.25
C144: Mid wt cap u'wear | D144: 1 | E144: item(s) | F144: 8 | G144: 0 | I144: 1 | M144: =D144*F144*G144*I144 -> 0 | N144: 0
C145: Short u'wear* | D145: 1 | E145: item(s) | F145: 4 | G145: 1 | I145: 1 | M145: =D145*F145*G145*I145 -> 4 | N145: 0.25
C146: Shorts* | D146: 1 | E146: item(s) | F146: 9 | G146: 1 | I146: 1 | M146: 9 | N146: 0.5625
C147: Hiking pants* | D147: 1 | E147: item(s) | F147: 16 | G147: 1 | I147: 0 | M147: 0 | N147: 0
C148: Belt* | D148: 1 | E148: item(s) | F148: 2 | G148: 1 | I148: 0 | M148: 0 | N148: 0
C149: Jeans | D149: 1 | E149: item(s) | F149: 24 | G149: 0 | I149: 1 | M149: 0 | N149: 0
C150: Rain pants* | D150: 1 | E150: item(s) | F150: 9 | G150: 1 | I150: 1 | M150: 9 | N150: 0.5625
C151: Heavy socks*, wear on travel | D151: 1 | E151: item(s) | F151: 4.5 | G151: 1 | I151: 0 | M151: 0 | N151: 0
C152: Heavy socks* | D152: 1 | E152: item(s) | F152: 4.5 | G152: 1 | I152: 1 | M152: =D152*F152*G152*I152 -> 4.5 | N152: 0.28125
C153: Intermediate sox | D153: 1 | E153: item(s) | F153: 3 | G153: 0 | I153: 1 | M153: =D153*F153*G153*I153 -> 0 | N153: 0
C154: Lite sox* | D154: 1 | E154: item(s) | F154: 2 | G154: 1 | I154: 1 | M154: 2 | N154: 0.125
C155: Bandana* | D155: 1 | E155: item(s) | F155: 1 | G155: 1 | I155: 0 | M155: 0 | N155: 0
C156: MSR Towel* | D156: 1 | E156: item(s) | F156: 2 | G156: 1 | I156: 1 | M156: 2 | N156: 0.125
C157: Stuff sack* | D157: 1 | E157: item(s) | F157: 2 | G157: 1 | I157: 1 | M157: 2 | N157: 0.125
C158: … sack liner* | D158: 1 | E158: item(s) | F158: 1 | G158: 1 | I158: 1 | M158: 1 | N158: 0.0625
C159: … sack straps* | D159: 1 | E159: item(s) | F159: 1 | G159: 1 | I159: 1 | M159: 1 | N159: 0.0625
A160: Clothes, total | M160: =SUM(M126:M159) -> 67.75 | N160: 4.234375
A162: Total pack | M162: =M52+M69+M105+M123+M160 -> 670.8842857 | N162: =M162/16 -> 41.93026786

Sheet Travel-camping
A1: Trip length
B2: Days = | C2: =C3*7 -> 7
B3: Weeks = | C3: 1
B4: Months = | C4: =C3/4.35 -> 0.2298850575
A6: Travel-camping material is in a blue font; the numbers here are mostly over and above the numbers for backpacking; obviously much streamlining is possible and needed
A8: Class | B8: Sub-class
A9: Food | B9: Meal | D9: 1=take, 0=no | E9: unit | F9: oz/unit | G9: units/day | H9: /week | I9: /month | J9: weeks | K9: /trip | L9: oz (total) | M9: lb
B10: Breakfast
C11: Granola | D11: 0 | E11: cup | F11: 4 | H11: 5 | J11: =C3 -> 1 | L11: =D11*F11*H11*J11 -> 0 | M11: =L11/16 -> 0
C12: Milk powder | D12: 0 | E12: cup | F12: 6.5 | H12: 1 | J12: =C3 -> 1 | L12: =D12*F12*H12*J12 -> 0 | M12: =L12/16 -> 0
C13: Coffee | D13: 1 | E13: oz | F13: 1 | G13: 5 tbsp | H13: 10 | J13: =C3 -> 1 | L13: 10 | M13: 0.625
C14: Sugar | D14: 1 | E14: oz | F14: 1 | H14: 7 | J14: =C3 -> 1 | L14: 7 | M14: 0.4375
C15: Vitamins, meds, xtra ibuprofen | D15: 1 | E15: oz | F15: 1 | H15: 3.25 | J15: =C3 -> 1 | L15: 3.25 | M15: =L15/16 -> 0.203125
C16: Teas, drinks | D16: 0 | E16: oz | F16: 1 | K16: 1.5 | L16: =D16*F16*K16 -> 0 | M16: =L16/16 -> 0
C17: Condensed milk | D17: 1 | E17: can | F17: 14 | H17: 2 | J17: 1 | L17: =D17*F17*H17*J17 -> 28 | M17: =L17/16 -> 1.75
B18: Trail
C19: Sesame sticks | D19: 1 | E19: fist | F19: 1.333333333 | H19: 4 | J19: =C3 -> 1 | L19: 5.333333333 | M19: =L19/16 -> 0.3333333333
C20: Nuts | D20: 1 | E20: fist | F20: 1.666666667 | H20: 4 | J20: =C3 -> 1 | L20: 6.666666667 | M20: 0.4166666667
C21: Dried fruit | D21: 1 | E21: fist | F21: 2.166666667 | H21: 4 | J21: =C3 -> 1 | L21: 8.666666667 | M21: 0.5416666667
B22: Dinner
C23: Rice, instant | D23: 0 | E23: fist | F23: 1.333333333 | H23: 7 | J23: =C3 -> 1 | L23: 0 | M23: =L23/16 -> 0
C24: Beans | D24: 0 | E24: fist | F24: 1.666666667 | H24: 6 | J24: =C3 -> 1 | L24: 0 | M24: =L24/16 -> 0
C25: Ramen | D25: 1 | E25: packet | F25: 2.5 | H25: 5 | J25: =C3 -> 1 | L25: 12.5 | M25: 0.78125
C26: Broths | D26: 1 | E26: packet | F26: 0.5 | H26: 2 | J26: =C3 -> 1 | L26: 1 | M26: 0.0625
C27: Jerky | D27: 0 | E27: packet | F27: 3 | H27: 1 | J27: =C3 -> 1 | L27: 0 | M27: 0
C28: Fruit bars | D28: 1 | E28: bar | F28: 1.2 | H28: 5 | J28: =C3 -> 1 | L28: 6 | M28: 0.375
C29: Turmeric | D29: 1 | E29: oz | F29: 1 | H29: 1 | J29: =C3 -> 1 | L29: 1 | M29: 0.0625
C30: Jalapenos | D30: 0 | E30: jalapeno | F30: 0.5 | H30: 2 | J30: =C3 -> 1 | L30: 0 | M30: 0
C31: Garlic, packets | D31: 0 | E31: packet | F31: 1.5 | H31: 1 | J31: =C3 -> 1 | L31: 0 | M31: 0
C32: Onion, thumb dia | D32: 0 | E32: onion | F32: 6 | H32: 1 | J32: =C3 -> 1 | L32: 0 | M32: 0
C33: Spices | D33: 0 | E33: oz | F33: 0.5 | H33: 3 | J33: =C3 -> 1 | L33: 0 | M33: 0
C34: Salt | D34: 1 | E34: oz | F34: 1 | H34: 2 | J34: =C3 -> 1 | L34: 2 | M34: 0.125
C35: Veg oil | D35: 0 | E35: oz | F35: 1 | H35: 2 | J35: =C3 -> 1 | L35: 0 | M35: 0
B36: Stuff sacks | D36: 0 | E36: sack | F36: 4 | K36: 1 | L36: =D36*F36*K36 -> 0 | M36: 0
A37: Food, total | L37: =SUM(L11:L36) -> 91.41666667 | M37: =L37/16 -> 5.713541667
A39: Cooking... | D39: Count
C40: Utensils | D40: 0 | E40: item(s) | F40: 8.5 | K40: 1 | L40: =D40*F40 -> 0 | M40: =L40/16 -> 0
C42: Stove-MSR Dragonfly | D42: 0 | E42: item(s) | F42: 14.5 | K42: 1 | L42: =D42*F42 -> 0 | M42: =L42/16 -> 0
C43: Heat shield | D43: 0 | E43: item(s) | F43: 2.5 | K43: 1 | L43: 0 | M43: 0
C44: Pot, titanium | D44: 0 | E44: item(s) | F44: 8 | K44: 1 | L44: 0 | M44: 0
C45: Pot, stainless, 0.50 gal | D45: 0 | E45: item(s) | F45: 20 | K45: 1 | L45: 0 | M45: 0
C46: Pot, stainless, 0.25 gal | D46: 0 | E46: item(s) | F46: 13 | K46: 1 | L46: 0 | M46: 0
C47: Fuel bottle, 1 l tr/ 33oz | D47: 0 | E47: item(s) | F47: 7.6 | K47: 1 | L47: =D47*F47 -> 0 | M47: =L47/16 -> 0
C48: Fuel bottle, 591 ml / 20oz | D48: 1 | E48: item(s) | F48: 6 | K48: 1 | L48: =D48*F48 -> 6 | M48: =L48/16 -> 0.375
C49: Fuel bottle, 325 ml / 11oz | D49: 0 | E49: item(s) | F49: 4 | K49: 1 | L49: =D49*F49 -> 0 | M49: =L49/16 -> 0
C51: Fuel | E51: fl oz | F51: 0.7 | H51: 32 | L51: =F51*H51 -> 22.4 | M51: =L51/16 -> 1.4
C53: MSR Pocket Rocket (get?) | D53: 0 | E53: item(s) | F53: 2.6 | K53: 1 | L53: =D53*F53 -> 0 | M53: =L53/16 -> 0
C54: MSR 16 oz cannister-ask at Ad-Edge | D54: 0 | E54: item(s) | F54: 16 | K54: 1 | L54: 0 | M54: 0
A55: Cooking… total | L55: =SUM(L40:L51) -> 28.4 | M55: 1.775
A57: Hiking, travel | I57: include in pack weight, 0 = no
C58: Backpack, Osprey, Ejos | D58: 0 | E58: item(s) | F58: 43 | I58: 1 | L58: =D58*F58*I58 -> 0 | M58: =L58/16 -> 0
C59: Backpack, Osprey, Argon 85M | D59: 0 | E59: item(s) | F59: 104 | I59: 1 | L59: =D59*F59*I59 -> 0 | M59: =L59/16 -> 0
C60: Olive Jansport daypack | D60: 1 | E60: item(s) | F60: 17 | I60: 1 | L60: =D60*F60*I60 -> 17 | M60: =L60/16 -> 1.0625
C61: Binoculars | D61: 0 | E61: item(s) | F61: 8.5 | I61: 1 | L61: =D61*F61*I61 -> 0 | M61: =L61/16 -> 0
C62: Rifle, .30-06 | D62: 0 | E62: item(s) | F62: 144 | I62: 1 | L62: 0 | M62: 0
C63: Shoes, ankle high | D63: 0 | E63: item(s) | F63: 48 | I63: 0 | L63: 0 | M63: 0
C64: Shoes, running | D64: 0 | E64: item(s) | F64: 30 | I64: 0 | L64: 0 | M64: 0
C65: Sneakers | D65: 0 | E65: item(s) | F65: 29 | I65: 1 | L65: 0 | M65: 0
C66: Sandals | D66: 0 | E66: item(s) | F66: 19 | I66: 1 | L66: 0 | M66: 0
C67: Shoes, dress | D67: 1 | E67: item(s) | F67: 26 | I67: 1 | L67: 26 | M67: 1.625
C68: MSR Snowshoes | D68: 0 | E68: item(s) | F68: 59 | I68: 1 | L68: 0 | M68: 0
C69: … MSR Snowshoe extebsuibs | D69: 0 | E69: item(s) | F69: 17 | I69: 1 | L69: 0 | M69: 0
C70: Skis and poles | D70: 0 | E70: item(s) | F70: 118 | I70: 1 | L70: 0 | M70: 0
C71: Crampons | D71: 0 | E71: item(s) | F71: 40.75 | I71: 1 | L71: 0 | M71: 0
C72: Trekking poles, Leki | D72: 0 | E72: item(s) | F72: 20 | I72: 1 | L72: =D72*F72*I72 -> 0 | M72: =L72/16 -> 0
C73: Insect netting | D73: 0 | E73: item(s) | F73: 1.5 | I73: 1 | L73: 0 | M73: 0
C74: Pouch-misc items | D74: 0 | E74: item(s) | F74: 16.5 | I74: 1 | L74: 0 | M74: 0
C75: Albuterol | D75: 0 | E75: item(s) | F75: 1.5 | I75: 1 | L75: 0 | M75: 0
C76: Maps, paper | D76: 0 | E76: item(s) | F76: 9.5 | I76: 1 | L76: 0 | M76: 0
C77: Simple manual | D77: 0 | E77: item(s) | F77: 1 | I77: 1 | L77: 0 | M77: 0
C78: Camera | D78: 0 | E78: item(s) | F78: 6.5 | I78: 1 | L78: 0 | M78: 0
C79: Phone | D79: 0 | E79: item(s) | F79: 3.5 | I79: 1 | L79: 0 | M79: 0
C80: Cards, check, cash, key | D80: 0 | E80: item(s) | F80: 2 | I80: 1 | L80: 0 | M80: 0
C81: Batteries | D81: 0 | E81: item(s) | F81: 4.5 | I81: 1 | L81: 0 | M81: 0
C82: Watch | D82: 0 | E82: item(s) | F82: 2 | I82: 1 | L82: 0 | M82: 0
C83: Plastic bags | D83: 0 | E83: item(s) | F83: 0.5 | I83: 1 | L83: 0 | M83: 0
C85: H2O filter straw | D85: 0 | E85: item(s) | F85: 2 | I85: 1 | L85: =D85*F85*I85 -> 0 | M85: 0
C86: 64 oz Platypus H2O bladder | D86: 0 | E86: item(s) | F86: 6 | I86: 1 | L86: =D86*F86*I86 -> 0 | M86: 0
C87: 32 oz Nalgene H2O bottle | D87: 0 | E87: item(s) | F87: 7 | I87: 1 | L87: =D87*F87*I87 -> 0 | M87: 0
C88: H2O for platypus | D88: 0 | E88: oz | F88: 1 | G88: 64 | I88: 1 | L88: =D88*F88*G88*I88 -> 0 | M88: 0
C89: H2O for nalgene | D89: 0 | E89: oz | F89: 1 | G89: 32 | I89: 1 | L89: =D89*F89*G89*I89 -> 0 | M89: 0
A90: Hiking, total | L90: =SUM(L58:L89) -> 43 | M90: 2.6875
A92: Camping
C93: Tent (Nemo, Elite 1p) + footprint | D93: 0 | E93: items(s) | F93: 39 | L93: =D93*F93 -> 0 | M93: =L93/16 -> 0
C94: Tent (Sierra Designs, Flashlight) | D94: 0 | E94: items(s) | F94: 78 | L94: 0 | M94: 0
C95: Bivvy | D95: 0 | E95: items(s) | F95: 17 | L95: 0 | M95: 0
C96: Tarp 9'x9' | D96: 0 | E96: items(s) | F96: 33 | L96: 0 | M96: 0
C97: Tarp 8'x8' | D97: 0 | E97: items(s) | F97: 25 | L97: 0 | M97: 0
C98: Ground sheet (separate) | D98: 0 | E98: items(s) | F98: 13 | L98: 0 | M98: 0
C99: Sleeping bag, Western Mntnring | D99: 0 | E99: items(s) | F99: 18 | L99: 0 | M99: 0
C100: Sleeping bag, Marmot | D100: 0 | E100: items(s) | F100: 34 | L100: 0 | M100: 0
C101: Air mattress | D101: 0 | E101: items(s) | F101: 14.5 | L101: 0 | M101: 0
C102: Rope, straps | D102: 0 | E102: items(s) | F102: 3.5 | L102: 0 | M102: 0
C103: Med sack | D103: 0 | E103: items(s) | F103: 16 | L103: 0 | M103: 0
C104: Toilet | D104: 1 | E104: items(s) | F104: 3.5 | L104: 3.5 | M104: 0.21875
A105: Camping, total | L105: =SUM(L93:L104) -> 3.5 | M105: 0.21875
A107: Clothes | B107: * summer, general | D107: Count | G107: 1=take, 0=no | I107: include in pk wt, 0=no
C108: Lite cap shirt* | D108: 0 | E108: item(s) | F108: 4.25 | G108: 1 | I108: 1 | L108: =D108*F108*G108*I108 -> 0 | M108: =L108/16 -> 0
C109: Lite cap shirt, tee / long sleeve* | D109: 0 | E109: item(s) | F109: 4.25 | G109: 1 | I109: 1 | L109: =D109*F109*G109*I109 -> 0 | M109: =L109/16 -> 0
C110: Cap shirt, grey, hooded* | D110: 0 | E110: item(s) | F110: 5.5 | G110: 1 | I110: 1 | L110: 0 | M110: 0
C111: Steel grey warm shirt* | D111: 0 | E111: item(s) | F111: 10 | G111: 1 | I111: 0 | L111: 0 | M111: 0
C112: Mid wt cap z-neck | D112: 0 | E112: item(s) | F112: 9 | G112: 0 | I112: 1 | L112: 0 | M112: 0
C113: Collared shirt | D113: 1 | E113: item(s) | F113: 8 | G113: 0 | I113: 1 | L113: 0 | M113: 0
C114: Blk wind wall jacket, N Face | D114: 0 | E114: item(s) | F114: 26.5 | G114: 0 | I114: 1 | L114: 0 | M114: 0
C115: Blk lined jacket, N Face | D115: 0 | E115: item(s) | F115: 18 | G115: 0 | I115: 1 | L115: 0 | M115: 0
C116: Red wind wall jacket, Marmot | D116: 0 | E116: item(s) | F116: 23.5 | G116: 0 | I116: 1 | L116: 0 | M116: 0
C117: Rain jacket, Marmot* | D117: 1 | E117: item(s) | F117: 12.25 | G117: 1 | I117: 1 | L117: 12.25 | M117: 0.765625
C118: Rain jacket, Columbia | D118: 1 | E118: item(s) | F118: 18 | G118: 0 | I118: 1 | L118: 0 | M118: 0
C119: Down jacket, blue | D119: 1 | E119: item(s) | F119: 24 | G119: 0 | I119: 1 | L119: 0 | M119: 0
C120: Dress jacket | D120: 1 | E120: item(s) | F120: 26.5 | G120: 0 | I120: 1 | L120: 0 | M120: 0
C121: Gloves, lite | D121: 0 | E121: item(s) | F121: 1 | G121: 0 | I121: 1 | L121: 0 | M121: 0
C122: Sun-visor* | D122: 0 | E122: item(s) | F122: 2 | G122: 1 | I122: 1 | L122: 0 | M122: 0
C123: Hat | D123: 0 | E123: item(s) | F123: 5 | G123: 0 | I123: 1 | L123: 0 | M123: 0
C124: Lite cap long u'wear* | D124: 0 | E124: item(s) | F124: 4 | G124: 1 | I124: 0 | L124: 0 | M124: 0
C125: Lite cap long u'wear, spare* | D125: 0 | E125: item(s) | F125: 4 | G125: 1 | I125: 1 | L125: 0 | M125: 0
C126: Mid wt cap u'wear | D126: 0 | E126: item(s) | F126: 8 | G126: 0 | I126: 1 | L126: 0 | M126: 0
C127: Short u'wear* | D127: 0 | E127: item(s) | F127: 4 | G127: 1 | I127: 1 | L127: 0 | M127: 0
C128: Shorts* | D128: 0 | E128: item(s) | F128: 9 | G128: 1 | I128: 1 | L128: 0 | M128: 0
C129: Hiking pants* | D129: 0 | E129: item(s) | F129: 16 | G129: 1 | I129: 0 | L129: 0 | M129: 0
C130: Belt* | D130: 0 | E130: item(s) | F130: 2 | G130: 1 | I130: 0 | L130: 0 | M130: 0
C131: Jeans | D131: 1 | E131: item(s) | F131: 24 | G131: 1 | I131: 1 | L131: 24 | M131: 1.5
C132: Rain pants* | D132: 0 | E132: item(s) | F132: 9 | G132: 1 | I132: 1 | L132: 0 | M132: 0
C133: Heavy socks*, wear on travel | D133: 0 | E133: item(s) | F133: 4.5 | G133: 1 | I133: 0 | L133: 0 | M133: 0
C134: Heavy socks* | D134: 0 | E134: item(s) | F134: 4.5 | G134: 1 | I134: 1 | L134: 0 | M134: 0
C135: Intermediate sox | D135: 0 | E135: item(s) | F135: 3 | G135: 0 | I135: 1 | L135: 0 | M135: 0
C136: Lite sox* | D136: 0 | E136: item(s) | F136: 2 | G136: 1 | I136: 1 | L136: 0 | M136: 0
C137: Bandana* | D137: 0 | E137: item(s) | F137: 1 | G137: 1 | I137: 0 | L137: 0 | M137: 0
C138: MSR Towel* | D138: 0 | E138: item(s) | F138: 2 | G138: 1 | I138: 1 | L138: 0 | M138: 0
C139: Stuff sack* | D139: 0 | E139: item(s) | F139: 2 | G139: 1 | I139: 1 | L139: 0 | M139: 0
C140: … sack liner* | D140: 0 | E140: item(s) | F140: 1 | G140: 1 | I140: 1 | L140: 0 | M140: 0
C141: … sack straps* | D141: 0 | E141: item(s) | F141: 1 | G141: 1 | I141: 1 | L141: 0 | M141: 0
A142: Clothes, total | L142: =SUM(L108:L141) -> 36.25 | M142: 2.265625
A144: Total pack | L144: =L37+L55+L90+L105+L142 -> 202.5666667 | M144: =L144/16 -> 12.66041667

Sheet Planning
A1: Planning and preparation
B2: hiking list | C2: (html)
B3: hiking list-long | C3: (html)
B5: Main
C6: plan-prep aim-what-where-itinerary-travel > tickets, permits, hikes, air-forest conditions
C7: trial pack + hike-with-old-pack
C8: last min mail home, feet, fresh items
B10: Get
C11: hiking gear and supplies
C12: light stove
C13: town and camping supplies
C14: short sleeve t-shirt
C15: lite z-neck shirt
A18: Total pack weight for backpacking and travel = | F18: =Backpacking!M162+'Travel-camping'!L144 -> 873.4509524 | G18: oz | H18: =F18/16 -> 54.59068452 | I18: lb
